lending/lending_fUSD_20260206
["ID","MTS","AMOUNT","RATE_DAILY","PERIOD"]
[404624148,1770343951879,-151.0,0.00012747,2]
[404624149,1770343955356,1000.0,0.0001265,2]
[404624150,1770343968401,-500.0,0.00012749,2]
[404624151,1770343968456,-500.0,0.00012749,2]
[404624152,1770343968487,-500.0,0.00012749,2]
[404624153,1770343968520,-500.0,0.00012749,2]
[404624154,1770343968553,-500.0,0.00012749,2]
[404624155,1770343968584,-500.0,0.00012749,2]
[404624156,1770343968616,-500.0,0.00012749,2]
[404624157,1770343968647,-500.0,0.00012749,2]
[404624158,1770343968678,-500.0,0.00012749,2]
[404624159,1770343968707,-500.0,0.00012749,2]
[404624160,1770343968770,-500.0,0.00012749,2]
[404624161,1770343968798,-500.0,0.00012749,2]
[404624162,1770343968827,-500.0,0.00012749,2]
[404624163,1770343968856,-500.0,0.00012749,2]
[404624164,1770343968884,-500.0,0.00012749,2]
[404624165,1770343968913,-500.0,0.00012749,2]
[404624166,1770343968944,-500.0,0.00012749,2]
[404624167,1770343968975,-500.0,0.00012749,2]
[404624168,1770343969005,-500.0,0.00012749,2]
[404624169,1770343969037,-500.0,0.00012749,2]
[404624170,1770343969100,-540.41365358,0.00012749,2]
[404624171,1770343969131,-500.0,0.00012749,2]
[404624172,1770343969162,-500.0,0.00012749,2]
[404624173,1770343973733,2500.0,0.0001265,2]
[404624174,1770343980779,209.57,0.00012328,2]
[404624175,1770343983249,-4545.01,0.0001275,2]
[404624176,1770343983572,-909.99,0.0001275,2]
[404624177,1770343983603,-423.235,0.0001275,2]
[404624178,1770343993581,151.0,0.00012747,2]
[404624179,1770343994089,151.0,0.00012747,2]
[404624180,1770343994506,151.0,0.00012747,2]
[404624182,1770343998458,-6747.45,0.0001275,2]
[404624183,1770343998696,-10000.01,0.0001275,2]
[404624184,1770343998932,-10000.01,0.0001275,2]
[404624185,1770343999174,-10000.01,0.0001275,2]
[404624186,1770343999358,-10000.01,0.0001275,2]
[404624187,1770343999563,-10000.01,0.0001275,2]
[404624188,1770343999975,-10000.01,0.0001275,2]
[404624189,1770344000553,-10000.01,0.0001275,2]
[404624190,1770344000759,-10000.01,0.0001275,2]
[404624191,1770344000952,-10000.01,0.0001275,2]
[404624192,1770344007299,-111.08,0.00012326,2]
[404624193,1770344007323,-9777.85,0.00012326,2]
[404624194,1770344007394,-10000.01,0.0001275,2]
[404624195,1770344007605,-232.0,0.00012749,2]
[404624196,1770344007639,-9536.01,0.0001275,2]
[404624197,1770344007710,-212.36541932,0.00012428,2]
[404624198,1770344007967,-9575.27916136,0.0001275,2]
[404624199,1770344008096,-10000.01,0.0001275,2]
[404624200,1770344008123,-10000.01,0.0001275,2]
[404624201,1770344008137,-10000.01,0.0001275,2]
[404624202,1770344095972,150.0,0.00012269,2]
[404624203,1770344112905,1287.72862816,0.000124,2]
[404624204,1770344153888,155.16,0.00012264,2]
[404624205,1770344248046,-168.99497017,0.000124,2]
[404624206,1770344263165,-152.0,0.00012406,3]
[404624207,1770344279482,-2447.0708,0.000125,2]
[404624208,1770344279518,-168.52,0.000125,2]
[404624209,1770344280108,-300.0,0.00012549,2]
[404624210,1770344281690,300.0,0.00012549,2]
[404624211,1770344285840,151.74,0.00011816,2]
[404624212,1770344294707,-1329.09066711,0.0001255,2]
[404624213,1770344294764,-5904.10003762,0.0001255,2]
[404624214,1770344294807,-10000.01,0.0001255,2]
[404624215,1770344294917,-10000.01,0.0001255,2]
[404624216,1770344295054,-10000.01,0.0001255,2]
[404624217,1770344295203,-3329.22912346,0.0001255,2]
[404624218,1770344295227,-3341.55175308,0.0001255,2]
[404624219,1770344295287,-841.74096107,0.0001255,2]
[404624220,1770344295314,-323.04020112,0.0001255,2]
[404624221,1770344295343,-274.78883285,0.0001255,2]
[404624222,1770344295458,-1513.97000992,0.0001255,2]
[404624223,1770344295493,-10000.01,0.0001255,2]
[404624224,1770344295506,-2133.57135759,0.0001255,2]
[404624225,1770344306057,1416.31797517,0.0001255,2]
[404624226,1770344310556,-3583.69202483,0.00012561,2]
[404624227,1770344310640,-5000.01,0.00012561,2]
[404624228,1770344310769,-5000.01,0.00012561,2]
[404624229,1770344310918,-5000.01,0.00012561,2]
[404624230,1770344311040,-5000.01,0.00012561,2]
[404624231,1770344325665,271.31426798,0.0001255,2]
[404624232,1770344330573,1000.0,0.00011816,2]
[404624234,1770344337585,204.56,0.00012055,2]
[404624235,1770344342735,724.34404466,0.0001255,2]
[404624236,1770344346068,4443.4166,0.0001255,2]
[404624237,1770344348137,342.910753,7.945e-05,2]
[404624238,1770344352094,237.4484,0.0001255,2]
[404624239,1770344352707,4419.650847,0.0001255,2]
[404624240,1770344352730,455.34966412,0.0001255,2]
[404624241,1770344357193,276.64773433,0.0001255,2]
[404624242,1770344368276,4100.25195689,0.0001255,2]
[404624243,1770344368299,6524.71177149,0.0001255,2]
[404624244,1770344390518,3475.29822851,0.0001255,2]
[404624245,1770344390541,10000.01,0.0001255,2]
[404624246,1770344390567,10000.01,0.0001255,2]
[404624247,1770344401172,300.0,0.00012549,2]
[404624248,1770344401203,1200.0,0.00012549,2]
[404624249,1770344401239,300.0,0.00012549,2]
[404624250,1770344407625,3845.29025874,7.945e-05,2]
[404624251,1770344407649,2492.47342326,7.945e-05,2]
[404624252,1770344694810,1087.050093,0.00013939,7]
[404624253,1770344759447,5200.20141181,8e-05,2]
[404624254,1770344759469,5200.20141181,8e-05,2]
[404624255,1770344759492,5200.20141181,8e-05,2]
[404624256,1770344759519,5200.20141181,8e-05,2]
[404624257,1770344759542,1902.45844366,8e-05,2]
[404624258,1770344763336,570.09057781,0.00011,2]
[404624259,1770344832190,1200.0,0.000115,4]
[404624260,1770344834271,2500.0,0.000116,4]
[404624261,1770344837021,3800.0,0.000117,4]
[404624262,1770344839125,5100.0,0.000118,4]
[404624263,1770344841221,6300.0,0.000119,4]
[404624273,1770344896710,392.17100268,7.888e-05,2]
[404624274,1770344903121,3319.345565,0.00011681,2]
[404624276,1770344922260,500.0,0.00011418,2]
[404624277,1770344924051,171.05,9.135e-05,2]
[404624278,1770344930984,200.0,0.000115,4]
[404624279,1770344933073,500.0,0.000116,4]
[404624280,1770344935159,700.0,0.000117,4]
[404624281,1770344937191,1220.18,0.00011494,2]
[404624282,1770344937260,1000.0,0.000118,4]
[404624283,1770344939347,1200.0,0.000119,4]
[404624284,1770344974104,-324.99,0.0001174,2]
[404624285,1770344974129,-150.0,0.00012216,2]
[404624286,1770344974151,-153.11019249,0.00012216,2]
[404624287,1770344974172,-154.43411118,0.00012216,2]
[404624288,1770344974194,-152.2040611,0.00012216,2]
[404624289,1770344974216,-150.0,0.00012216,2]
[404624290,1770344974238,-150.59270043,0.00012216,2]
[404624291,1770344974260,-150.0,0.00012216,2]
[404624292,1770344974283,-150.0,0.00012216,2]
[404624293,1770344974304,-500.0,0.00012216,2]
[404624294,1770344974567,-274.85968916,0.00012216,2]
[404624296,1770345021181,156.08325952,0.00012216,2]
[404624297,1770345021469,500.0,0.00012216,2]
[404624298,1770345021805,150.0,0.00012216,2]
[404624299,1770345022144,150.0,0.00012216,2]
[404624300,1770345022267,500.0,0.00012216,2]
[404624301,1770345022440,150.0,0.00012216,2]
[404624326,1770345031694,-300.0,0.00012264,2]
[404624328,1770345031704,-159.26478704,0.00012264,2]
[404624330,1770345031715,-645.65,0.00012264,2]
[404624332,1770345031727,-395.08521296,0.00012264,2]
[404624333,1770345031736,-104.41773336,0.00012265,2]
[404624334,1770345031801,-891.46688688,0.00012265,2]
[404624335,1770345031811,-609.78110912,0.00012265,2]
[404624336,1770345031823,-6473.52804312,0.00012265,2]
[404624337,1770345031837,-180.87617866,0.00012265,2]
[404624338,1770345031848,-250.0,0.00012265,2]
[404624339,1770345031857,-1203.94604668,0.00012265,2]
[404624340,1770345031870,-144.70254671,0.00012265,2]
[404624341,1770345031880,-243.8412068,0.00012265,2]
[404624342,1770345031890,-184.4318229,0.00012265,2]
[404624343,1770345031899,-150.0,0.00012271,2]
[404624344,1770345031909,-150.0,0.00012271,2]
[404624345,1770345031919,-150.0,0.00012271,2]
[404624346,1770345031928,-150.0,0.00012271,2]
[404624347,1770345031938,-500.0,0.00012271,2]
[404624348,1770345031948,-500.0,0.00012271,2]
[404624349,1770345031958,-205.83867613,0.00012271,2]
[404624351,1770345031968,-150.0,0.00012271,2]
[404624353,1770345031977,-500.0,0.00012271,2]
[404624354,1770345031987,-22062.5669203,0.00012271,2]
[404624356,1770345032011,-10116.48528,0.00012271,2]
[404624357,1770345032712,10000.01,0.00012199,2]
[404624358,1770345032736,10000.01,0.00012199,2]
[404624359,1770345032758,3393.92674048,0.00012199,2]
[404624360,1770345032786,5000.01,0.00012199,2]
[404624361,1770345033051,2877.66386164,0.00012199,2]
[404624363,1770345037770,-128882.0,0.00012199,2]
[404624364,1770345037884,-4000.0,0.00012199,2]
[404624366,1770345039744,-306.10710901,0.00012199,2]
[404624367,1770345039800,-15427.13380626,0.00012199,2]
[404624368,1770345039813,-1190.32499995,0.00012199,2]
[404624372,1770345040786,400.0,0.000115,4]
[404624375,1770345042886,800.0,0.000116,4]
[404624379,1770345043468,-6500.0,0.00012199,2]
[404624381,1770345044403,-6713.07614073,0.00012199,2]
[404624382,1770345044414,-327.365286,0.00012199,2]
[404624383,1770345044425,-503.5345161,0.00012199,2]
[404624441,1770345044980,1300.0,0.000117,4]
[404624484,1770345045871,-1311.9557303,0.00012199,2]
[404624485,1770345045931,-650.16123123,0.00012199,2]
[404624486,1770345045942,-2180.0,0.00012199,2]
[404624487,1770345046251,-1300.14,0.00012199,2]
[404624488,1770345047179,1700.0,0.000118,4]
[404624489,1770345049273,2200.0,0.000119,4]
[404624490,1770345071014,1300.0,0.000115,4]
[404624491,1770345073095,2700.0,0.000116,4]
[404624492,1770345075184,4100.0,0.000117,4]
[404624493,1770345077278,5500.0,0.000118,4]
[404624494,1770345079407,6900.0,0.000119,4]
[404624498,1770345085927,2727.65239034,0.00011123,2]
[404624499,1770345095841,5200.20141181,0.00011121,2]
[404624500,1770345105138,5000.01,0.0001112,2]
[404624501,1770345105162,4999.99,0.0001112,2]
[404624502,1770345144065,200.21141181,0.00011064,2]
[404624503,1770345144088,2243.97443019,0.00011064,2]
[404624504,1770345208255,-245.0,0.0001112,2]
[404624505,1770345338915,-300.0,0.00011121,2]
[404624506,1770345338943,-1200.0,0.00011121,2]
[404624507,1770345356984,175.60715503,0.00011022,2]
[404624508,1770345470243,295.92,0.000111,2]
[404624509,1770345471227,-4799.79858819,0.00011121,2]
[404624510,1770345474666,-250.0,0.00011122,2]
[404624511,1770345474694,-300.0,0.00011122,2]
[404624512,1770345478821,200.0,0.00011062,2]
[404624514,1770345486369,-504.0,0.00011122,2]
[404624515,1770345486400,-300.0,0.00011122,2]
[404624516,1770345486429,-300.0,0.00011122,2]
[404624517,1770345518852,150.0,0.00011044,2]
[404624518,1770345534331,500.0,0.00011044,2]
[404624519,1770345603526,241.0,0.00011122,2]
[404624521,1770345640592,546.91,0.00011236,4]
[404624522,1770345696941,4109.01,0.00010973,2]
[404624523,1770345696962,1425.85,0.00010973,2]
[404624524,1770345747647,4218.0,0.00012,120]
[404624525,1770345747683,4483.66240999,0.00012,120]
[404624526,1770345747707,91174.86910297,0.00012,120]
[404624527,1770345788619,159.0,0.00012,3]
[404624528,1770345920862,-250.0,0.00011122,2]
[404624529,1770345921494,-2354.27168225,0.00011123,2]
[404624530,1770345921598,-81.93407259,0.00011123,2]
[404624531,1770345921621,-4836.14185482,0.00011123,2]
[404624532,1770345921696,-1200.0,0.00011229,2]
[404624533,1770345921722,-300.0,0.0001123,2]
[404624534,1770345921748,-300.0,0.0001123,2]
[404624535,1770345921809,-1400.01,0.00011233,2]
[404624536,1770345921831,-5000.01,0.00011233,2]
[404624537,1770345921909,-1350.2,0.00011233,2]
[404624538,1770345921931,-2299.61,0.00011233,2]
[404624539,1770345922027,-5000.01,0.00011277,2]
[404624540,1770345922168,-5000.01,0.00011277,2]
[404624541,1770345923578,-299.02,0.00011277,2]
[404624542,1770345923631,-4401.97,0.00011322,2]
[404624543,1770345923690,-453.07798307,0.00011322,2]
[404624544,1770345923719,-150.0,0.00011324,2]
[404624545,1770345923748,-500.0,0.00011325,2]
[404624546,1770345931883,500.0,0.00011325,2]
[404624547,1770345961251,300.0,0.00011324,2]
[404624548,1770345996929,503.23813055,0.00011325,2]
[404624549,1770346007226,-201.53823752,0.00011325,2]
[404624550,1770346007247,-8.16630799,0.00011325,2]
[404624551,1770346021214,300.0,0.00011324,2]
[404624552,1770346023540,800.0,0.000117,4]
[404624553,1770346024625,500.0,0.00011325,2]
[404624554,1770346025614,1700.0,0.000118,4]
[404624555,1770346027705,2600.0,0.000119,4]
[404624556,1770346027806,151.0,0.00011325,2]
[404624557,1770346028404,151.0,0.00011325,2]
[404624558,1770346029010,151.0,0.00011325,2]
[404624559,1770346029615,151.0,0.00011325,2]
[404624560,1770346030280,86.61590331,0.00011325,2]
[404624561,1770346030301,64.38409669,0.00011325,2]
[404624562,1770346030846,151.0,0.00011325,2]
[404624563,1770346031466,151.0,0.00011325,2]
[404624564,1770346032079,151.0,0.00011325,2]
[404624565,1770346032692,151.0,0.00011325,2]
[404624566,1770346033298,151.0,0.00011325,2]
[404624567,1770346033889,151.0,0.00011325,2]
[404624568,1770346034487,151.0,0.00011325,2]
[404624569,1770346035093,151.0,0.00011325,2]
[404624570,1770346035687,151.0,0.00011325,2]
[404624571,1770346035958,500.0,0.00011325,2]
[404624572,1770346036279,500.0,0.00011325,2]
[404624573,1770346036380,151.0,0.00011325,2]
[404624574,1770346036556,500.0,0.00011325,2]
[404624575,1770346036876,500.0,0.00011325,2]
[404624576,1770346037031,151.0,0.00011325,2]
[404624577,1770346037114,151.0,0.00011325,2]
[404624578,1770346037173,500.0,0.00011325,2]
[404624579,1770346037497,500.0,0.00011325,2]
[404624580,1770346037704,123.62590331,0.00011325,2]
[404624581,1770346037725,27.37409669,0.00011325,2]
[404624582,1770346037753,151.0,0.00011325,2]
[404624583,1770346037806,500.0,0.00011325,2]
[404624584,1770346038123,500.0,0.00011325,2]
[404624585,1770346038322,151.0,0.00011325,2]
[404624586,1770346038357,151.0,0.00011325,2]
[404624587,1770346038433,500.0,0.00011325,2]
[404624588,1770346038705,201.85367235,0.00011325,2]
[404624589,1770346038754,500.0,0.00011325,2]
[404624590,1770346038916,151.0,0.00011325,2]
[404624591,1770346038949,151.0,0.00011325,2]
[404624592,1770346039081,500.0,0.00011325,2]
[404624593,1770346039395,500.0,0.00011325,2]
[404624594,1770346039705,153.37287127,0.00011325,2]
[404624595,1770346039734,151.0,0.00011325,2]
[404624596,1770346039789,500.0,0.00011325,2]
[404624597,1770346040041,500.0,0.00011325,2]
[404624598,1770346040251,151.0,0.00011325,2]
[404624599,1770346040454,500.0,0.00011325,2]
[404624600,1770346040683,500.0,0.00011325,2]
[404624601,1770346040832,151.0,0.00011325,2]
[404624602,1770346040945,218.99759641,0.00011325,2]
[404624603,1770346041345,500.0,0.00011325,2]
[404624604,1770346041482,151.0,0.00011325,2]
[404624605,1770346042005,500.0,0.00011325,2]
[404624606,1770346042127,151.0,0.00011325,2]
[404624607,1770346042648,510.93974537,0.00011325,2]
[404624608,1770346042747,151.0,0.00011325,2]
[404624609,1770346043374,151.0,0.00011325,2]
[404624610,1770346049230,510.73,0.00011156,2]
[404624611,1770346049439,510.73,0.00011177,2]
[404624612,1770346049648,510.73,0.00011197,2]
[404624613,1770346049890,510.73,0.00011218,2]
[404624614,1770346050095,510.73,0.00011239,2]
[404624615,1770346050647,502.1961146,0.00011259,2]
[404624616,1770346050673,8.5338854,0.00011259,2]
[404624617,1770346050765,510.73,0.0001128,2]
[404624618,1770346050999,510.73,0.000113,2]
[404624619,1770346051222,510.73,0.00011321,2]
[404624620,1770346114165,150.0,0.00010959,2]
[404624621,1770346165007,-300.0,0.00011329,2]
[404624622,1770346165031,-49700.0,0.00011332,2]
[404624623,1770346166253,-29040.41,0.00011332,2]
[404624624,1770346166279,-510.73,0.00011341,2]
[404624625,1770346166303,-510.73,0.00011362,2]
[404624626,1770346166328,-510.73,0.00011382,2]
[404624627,1770346166353,-510.73,0.00011403,2]
[404624628,1770346166379,-510.73,0.00011424,2]
[404624629,1770346166403,-510.73,0.00011444,2]
[404624630,1770346166427,-510.73,0.00011465,2]
[404624631,1770346166451,-510.73,0.00011485,2]
[404624632,1770346166474,-510.73,0.00011506,2]
[404624633,1770346166499,-510.73,0.00011526,2]
[404624634,1770346166524,-500.0,0.00011534,2]
[404624635,1770346166548,-510.73,0.00011547,2]
[404624636,1770346166576,-500.0,0.00011562,2]
[404624637,1770346166604,-500.0,0.00011644,2]
[404624638,1770346166627,-2500.0,0.00011899,2]
[404624639,1770346166651,-151.0,0.00011996,2]
[404624640,1770346166674,-202.76319366,0.00011997,2]
[404624641,1770346166697,-150.0,0.00011997,2]
[404624642,1770346166721,-154.96700776,0.00011997,2]
[404624643,1770346166750,-209.9381486,0.00011997,2]
[404624644,1770346166774,-1080.03,0.00011997,2]
[404624645,1770346166799,-150.0,0.00011997,2]
[404624646,1770346166824,-150.0,0.00011997,2]
[404624647,1770346166849,-500.0,0.00011997,2]
[404624648,1770346166875,-150.0,0.00011997,2]
[404624649,1770346166899,-150.0,0.00011997,2]
[404624650,1770346166924,-150.0,0.00011997,2]
[404624651,1770346166949,-185.5694677,0.00011997,2]
[404624652,1770346166976,-500.0,0.00011998,2]
[404624653,1770346167004,-291.5159924,0.00011998,2]
[404624654,1770346167030,-500.0,0.00011998,2]
[404624655,1770346167058,-282.26818373,0.00011998,2]
[404624656,1770346167082,-6383.50800615,0.00011999,2]
[404624657,1770346167151,-26918.17319385,0.00011999,2]
[404624658,1770346167175,-1000.0,0.00011999,2]
[404624659,1770346167199,-2617.6134,0.00011999,2]
[404624660,1770346167227,-1000.0,0.00011999,2]
[404624661,1770346167252,-579.47523572,0.00011999,2]
[404624662,1770346167278,-17884.73817043,0.00011999,2]
[404624663,1770346167646,-36273.45651227,0.00011999,2]
[404624664,1770346167671,-500.0,0.00012,2]
[404624665,1770346167696,-1162.17809074,0.00012005,2]
[404624666,1770346167734,-246.91096585,0.00012005,2]
[404624667,1770346167762,-150.0,0.00012052,2]
[404624668,1770346167786,-276.63539008,0.00012052,2]
[404624669,1770346167812,-293.09313771,0.00012052,2]
[404624670,1770346167837,-500.0,0.00012052,2]
[404624671,1770346167863,-150.0,0.00012052,2]
[404624672,1770346167888,-255.57565192,0.00012052,2]
[404624673,1770346167913,-211.63422702,0.00012052,2]
[404624674,1770346167938,-182.49989122,0.00012089,2]
[404624675,1770346167963,-151.0,0.00012096,2]
[404624676,1770346167989,-9647.01613319,0.00012099,2]
[404624677,1770346168046,-50000.0,0.00012099,2]
[404624678,1770346168705,-50000.0,0.00012099,2]
[404624679,1770346169483,-50000.0,0.00012099,2]
[404624680,1770346169880,-50000.0,0.00012099,2]
[404624681,1770346170628,-50000.0,0.00012099,2]
[404624682,1770346171310,-50000.0,0.00012099,2]
[404624683,1770346172006,-50000.0,0.00012099,2]
[404624684,1770346172416,-50000.0,0.00012099,2]
[404624685,1770346173135,-50000.0,0.00012099,2]
[404624686,1770346173845,-50000.0,0.00012099,2]
[404624687,1770346174443,-50000.0,0.00012099,2]
[404624688,1770346174836,-50000.0,0.00012099,2]
[404624689,1770346175575,-50000.0,0.00012099,2]
[404624690,1770346176300,-50000.0,0.00012099,2]
[404624691,1770346176984,-50000.0,0.00012099,2]
[404624692,1770346177374,-50000.0,0.00012099,2]
[404624693,1770346177944,-50000.0,0.00012099,2]
[404624694,1770346178421,-50000.0,0.00012099,2]
[404624695,1770346178995,-50000.0,0.00012099,2]
[404624696,1770346179226,212.32099924,0.00011997,2]
[404624697,1770346179473,-50000.0,0.00012099,2]
[404624698,1770346180334,-50000.0,0.00012099,2]
[404624699,1770346180728,-50000.0,0.00012099,2]
[404624700,1770346180884,207.71050969,0.00011997,2]
[404624701,1770346181546,-50000.0,0.00012099,2]
[404624702,1770346181921,-50000.0,0.00012099,2]
[404624703,1770346192146,-50000.0,0.00012099,2]
[404624704,1770346193071,-50000.0,0.00012099,2]
[404624705,1770346193772,-50000.0,0.00012099,2]
[404624706,1770346194461,-50000.0,0.00012099,2]
[404624707,1770346195330,-50000.0,0.00012099,2]
[404624708,1770346196666,-40352.98386681,0.00012099,2]
[404624709,1770346196691,-356.87411969,0.00012099,2]
[404624710,1770346196715,-9290.1420135,0.000121,2]
[404624711,1770346198314,4579.97849107,0.00012,2]
[404624712,1770346198336,1148.25150893,0.00012,2]
[404624713,1770346199216,-28723.8579865,0.000121,2]
[404624714,1770346199244,-500.0,0.00012107,2]
[404624715,1770346199283,-150.0,0.00012107,2]
[404624716,1770346199310,-152.70084651,0.0001211,2]
[404624717,1770346199336,-2000.0,0.00012155,2]
[404624718,1770346199360,-2000.0,0.00012155,2]
[404624719,1770346199385,-1615.14169694,0.00012155,2]
[404624720,1770346199412,-250.0,0.00012155,2]
[404624721,1770346199437,-250.0,0.00012155,2]
[404624722,1770346199463,-250.0,0.00012155,2]
[404624723,1770346199492,-250.0,0.00012155,2]
[404624724,1770346199519,-250.0,0.00012155,2]
[404624725,1770346199546,-250.0,0.00012155,2]
[404624726,1770346199570,-250.0,0.00012155,2]
[404624727,1770346199595,-250.0,0.00012155,2]
[404624728,1770346199619,-250.0,0.00012155,2]
[404624729,1770346199642,-250.0,0.00012155,2]
[404624730,1770346199667,-250.0,0.00012155,2]
[404624731,1770346199692,-174.61919141,0.00012155,2]
[404624732,1770346199716,-250.0,0.00012155,2]
[404624733,1770346199741,-250.0,0.00012155,2]
[404624734,1770346199764,-250.0,0.00012155,2]
[404624735,1770346199788,-250.0,0.00012155,2]
[404624736,1770346199813,-250.0,0.00012155,2]
[404624737,1770346199837,-250.0,0.00012155,2]
[404624738,1770346199861,-250.0,0.00012155,2]
[404624739,1770346199884,-250.0,0.00012155,2]
[404624740,1770346199908,-277.35679052,0.00012155,2]
[404624741,1770346199932,-387.34024839,0.00012155,2]
[404624742,1770346199956,-209.40437684,0.00012155,2]
[404624743,1770346199980,-500.0,0.00012161,2]
[404624744,1770346200009,-150.0,0.00012161,2]
[404624745,1770346200036,-500.0,0.00012164,2]
[404624746,1770346200061,-151.0,0.00012199,2]
[404624747,1770346200092,-217.15233878,0.0001221,2]
[404624748,1770346200119,-500.0,0.00012216,2]
[404624749,1770346200146,-150.0,0.00012216,2]
[404624750,1770346200172,-225.18697532,0.00012265,2]
[404624751,1770346200200,-1001.56608315,0.0001227,2]
[404624752,1770346200231,-500.0,0.00012271,2]
[404624753,1770346200276,-220.11395296,0.00012271,2]
[404624754,1770346200308,-1080.03,0.00012271,2]
[404624755,1770346200335,-500.0,0.00012274,2]
[404624756,1770346200361,-3364.52951268,0.000123,3]
[404624757,1770346201159,-2165.47048732,0.000123,3]
[404624758,1770346201190,-233.51889341,0.0001232,2]
[404624759,1770346201215,-500.0,0.00012326,2]
[404624760,1770346201242,-242.15909246,0.00012375,2]
[404624761,1770346201268,-500.0,0.00012381,2]
[404624762,1770346201297,-251.11897888,0.0001243,2]
[404624763,1770346201322,-580.41879941,0.00012435,2]
[404624764,1770346201347,-5076.33735165,0.00012458,2]
[404624765,1770346201372,-300.0,0.00012458,2]
[404624766,1770346201396,-486.04708239,0.00012458,2]
[404624767,1770346201420,-250.0,0.00012458,2]
[404624768,1770346201445,-150.07812772,0.00012458,2]
[404624769,1770346201469,-250.0,0.00012458,2]
[404624770,1770346201493,-194.04251888,0.00012462,2]
[404624771,1770346201519,-300.0,0.00012462,2]
[404624772,1770346201548,-501.86370441,0.00012462,2]
[404624773,1770346201573,-250.0,0.00012462,2]
[404624774,1770346201605,-260.4103811,0.00012485,2]
[404624775,1770346201635,-5530.0,0.000125,5]
[404624776,1770346201660,-346.88,0.00012509,2]
[404624777,1770346201685,-160.34,0.0001251,2]
[404624778,1770346201712,-270.0455652,0.0001254,2]
[404624779,1770346201737,-1080.03,0.00012545,2]
[404624780,1770346201763,-15127.0,0.00012589,2]
[404624781,1770346201791,-280.03725112,0.00012595,2]
[404624782,1770346201816,-295.0,0.0001263,2]
[404624783,1770346201840,-151.0,0.00012647,2]
[404624784,1770346201865,-290.39862941,0.0001265,2]
[404624785,1770346201889,-582.118,0.00012692,2]
[404624786,1770346201914,-6158.009,0.00012692,2]
[404624787,1770346201939,-318.29020671,0.00012703,2]
[404624788,1770346201963,-287.61899177,0.00012703,2]
[404624789,1770346202208,-301.1433787,0.00012705,2]
[404624790,1770346202233,-6330.62355946,0.00012765,2]
[404624791,1770346204327,-250.0,0.00012199,2]
[404624792,1770346204353,-1200.0,0.00012299,2]
[404624793,1770346204380,-151.0,0.00012703,2]
[404624794,1770346204406,-151.0,0.00012765,2]
[404624795,1770346204430,-1921.7437707,0.00012765,2]
[404624796,1770346204457,-1080.03,0.00012819,2]
[404624797,1770346204481,-1344.53249,0.0001282,2]
[404624798,1770346204507,-1600.0,0.00012931,2]
[404624799,1770346204535,-878.1745,0.00012947,2]
[404624800,1770346204560,-1344.53248,0.00012947,2]
[404624801,1770346204585,-878.1745,0.00012947,2]
[404624802,1770346204611,-878.1745,0.00012947,2]
[404624803,1770346204637,-1344.53248,0.00012947,2]
[404624804,1770346204662,-1344.53248,0.00012947,2]
[404624805,1770346204688,-1344.53249,0.00012947,2]